[Event "Germany Countries-chT Youth 2022"]
[Site "Wiesbaden"]
[Date "2022.10.03"]
[Round "6"]
[White "Pikalow, Michael"]
[Black "Hassemeier, Mika"]
[Result "0-1"]
[ECO "B07"]
[WhiteElo "2073"]
[BlackElo "2087"]
[Annotator "TA"]
[PlyCount "88"]
[EventDate "2022.09.28"]
[EventType "team-tourn"]
[EventRounds "7"]
[EventCountry "GER"]
[SourceTitle "playchess.com"]
[Source "ChessBase"]
[SourceQuality "1"]
[TimeControl "40/5400+30:1800+30"]

{[%evp 10,88,49,34,50,45,46,25,46,45,109,113,110,121,120,121,133,115,135,120,137,103,114,107,118,83,96,76,80,70,84,50,78,44,80,40,78,87,89,83,137,67,110,33,38,-7,33,-45,-24,-377,-380,-431,-392,-485,-485,-415,-162,-311,-291,-433,-420,-677,-640,-939,-743,-2297,-2207,-2260,-1787,-29948,-9668,-29986,-29985,-29985,-29986,-29986,-29987,-29987,-29988,-29991,-29992]} 1. e4 {[%emt 0:00:03]} d6 {[%emt 0:00:06]} 2. d4 {[%emt 0:00:06]} Nf6 {[%emt 0:00:05]} 3. Nc3 {[%emt 0:00:03]} e5 {[%emt 0:00:10]} 4. dxe5 {[%emt 0:01:00]} dxe5 {[%emt 0:00:07]} 5. Qxd8+ {[%emt 0:00:10]} Kxd8 {[%emt 0:00:08]} 6. Bc4 {[%emt 0:00:37]} Ke8 {[%emt 0:00:08] now supersedes 6...Be6. B07: Pirc Defence: Miscellaneous Systems.} 7. f3 {[%emt 0:04:19]} c6 {[%emt 0:02:44]} 8. Bg5 {[%emt 0:01:45]} Bc5 {[%emt 0:07:42] White has an edge.} 9. Nge2 {[%emt 0:03:51]} b5 {[%emt 0:05:20]} (9... Nfd7 $14) 10. Bxf6 $16 {[%emt 0:04:12]} gxf6 {[%emt 0:04:04] [#]} 11. Nxb5 {[%emt 0:03:17][%mdl 512]} Na6 {[%emt 0:00:14] Prevents Nc7+.} (11... cxb5 $2 12. Bd5 $18) 12. Nbc3 {[%emt 0:01:09] [#]} Nc7 $146 {[%emt 0:04:37]} ({Predecessor:} 12... Rg8 13. g4 Nb4 14. Na4 Bf8 15. c3 Na6 16. b3 Nc5 17. Kf2 h5 18. h4 Ne6 19. Bxe6 fxe6 {1-0 (65) Fernandes Filho,B (2083)-Reis,P (2376) Recife 2010}) 13. O-O-O Ke7 {[%emt 0:02:45]} 14. Rd3 {[%emt 0:11:00]} Ne6 {[%emt 0:03:47]} 15. Rhd1 {[%emt 0:01:39]} h5 {[%emt 0:07:52]} 16. Na4 {[%emt 0:08:19]} Bf2 {[%emt 0:03:16]} 17. Kb1 {[%emt 0:11:08]} h4 {[%emt 0:03:08]} 18. Rf1 {[%emt 0:15:14]} Bb6 {[%emt 0:01:46]} 19. Nxb6 {[%emt 0:05:13]} axb6 {[%emt 0:00:15]} 20. Rfd1 {[%emt 0:01:11]} Ra7 {[%emt 0:08:01]} 21. b4 {[%emt 0:05:53]} Bd7 {[%emt 0:03:55]} 22. a3 {[%emt 0:03:53]} Rha8 {[%emt 0:07:08]} 23. Kb2 {[%emt 0:00:21]} b5 {[%emt 0:09:24]} 24. Ba2 {[%emt 0:02:15]} c5 {[%emt 0:01:18] [#]} (24... Rg8 $142) 25. Bd5 {[%emt 0:01:28]} ({Better is} 25. Nc3 $1 $16 {[%cal Rc3d5] Hoping for Nd5+.} c4 26. R3d2) 25... Rc8 {[%emt 0:02:58]} 26. c3 {[%emt 0:02:20]} (26. Nc3 $16) 26... c4 $14 {[%emt 0:03:47]} 27. Re3 {[%emt 0:01:10]} Nc7 {[%emt 0:07:15] [#]} 28. f4 {[%emt 0:03:37]} (28. Bxf7 $1 $14 Rca8 29. Bd5 Nxd5 30. Rxd5) 28... Bg4 {[%emt 0:00:57] ...exf4 is the strong threat.} (28... Rg8 $5 {[%cal Rg8g2]} 29. g3 hxg3 30. hxg3 (30. Rxg3 Rxg3 31. Nxg3 exf4 $11) 30... Bg4 $15) 29. h3 $2 {[%emt 0:00:43][%mdl 8192] White does not recover from this.} (29. Rf1 $11) 29... exf4 $19 {[%emt 0:00:45]} 30. hxg4 {[%emt 0:03:20]} fxe3 {[%emt 0:00:05]} 31. Nd4 {[%emt 0:00:17] aiming for Nc6+.} Nxd5 {[%emt 0:04:05]} 32. exd5 {[%emt 0:00:02][%mdl 4096] Endgame KRR-KRN} Rb7 $2 {[%emt 0:01:02]} (32... Kd7 33. Re1 Rg8 34. Rxe3 Rxg4) 33. Nf5+ {[%emt 0:03:07]} (33. Re1 $142) 33... Kd7 {[%emt 0:00:16]} 34. Nxe3 {[%emt 0:01:54]} (34. a4 {was necessary.} bxa4 35. Nxe3) 34... Re8 {[%emt 0:00:47]} 35. Nf5 {[%emt 0:01:02]} (35. Nc2 $142 Re2 36. Rh1) 35... Re2+ {[%emt 0:01:22]} 36. Kb1 {[%emt 0:00:38]} Ra7 {[%emt 0:02:21]} 37. Nd4 {[%emt 0:00:36]} Rxg2 {[%emt 0:00:07]} 38. Nxb5 {[%emt 0:00:21]} Ra8 {[%emt 0:00:48]} 39. Rf1 {[%emt 0:01:17]} Re8 {[%emt 0:03:02] ( -> ...h3)} 40. a4 {[%emt 0:01:26]} h3 {[%emt 0:00:20] Black mates.} 41. Nd4 {[%emt 0:30:28]} h2 {[%emt 0:31:50]} 42. Nf3 {[%emt 0:00:17]} Re3 {[%emt 0:00:25]} 43. Nxh2 {[%emt 0:00:30]} Rxh2 {[%emt 0:00:05]} 44. a5 {[%emt 0:00:05]} Rxc3 {[%emt 0:01:40] Weighted Error Value: White=0.96/Black=0.19 (very precise)} 0-1

[Event "Germany Countries-chT Youth 2022"]
[Site "Wiesbaden"]
[Date "2022.10.03"]
[Round "6"]
[White "Falke, Ornella"]
[Black "Besou, Hussain"]
[Result "1/2-1/2"]
[ECO "E01"]
[WhiteElo "1977"]
[BlackElo "2150"]
[Annotator "TA"]
[PlyCount "79"]
[EventDate "2022.09.28"]
[EventType "team-tourn"]
[EventRounds "7"]
[EventCountry "GER"]
[SourceTitle "playchess.com"]
[Source "ChessBase"]
[SourceQuality "1"]
[TimeControl "40/5400+30:1800+30"]

{[%evp 15,79,11,8,3,16,-10,-3,-30,-27,-34,-22,-42,-41,-67,-67,-71,-81,-85,-88,-108,-34,-32,-10,-37,-33,-74,-42,-44,-15,-17,0,-14,-9,-22,-5,-13,0,0,44,45,47,47,47,47,47,48,51,52,55,49,49,55,55,49,55,48,55,21,20,20,35,34,34,33,28,0]} 1. d4 {[%emt 0:00:03]} Nf6 {[%emt 0:00:09]} 2. c4 {[%emt 0:00:07]} e6 {[%emt 0:00:06]} 3. g3 {[%emt 0:00:10]} d5 {[%emt 0:01:21]} 4. Bg2 {[%emt 0:00:12]} Bb4+ {[%emt 0:00:20]} 5. Nd2 {[%emt 0:04:05]} O-O {[%emt 0:00:41]} 6. Ngf3 {[%emt 0:05:01]} b6 {[%emt 0:05:05]} 7. a3 {[%emt 0:01:43]} Be7 {[%emt 0:00:55]} 8. O-O {[%emt 0:00:13]} a5 {[%emt 0:01:28]} 9. Qc2 {[%emt 0:02:04] E11: Bogo-Indian.} Bb7 {[%emt 0:00:54]} 10. Ne5 {[%emt 0:16:54]} c5 {[%emt 0:19:00] [#]} 11. Rd1 $146 {[%emt 0:11:41] The position is equal.} ({Predecessor:} 11. cxd5 Bxd5 12. e4 Bb7 13. dxc5 Bxc5 14. Nb3 Be7 15. Be3 a4 16. Nd4 Bc5 17. Rfd1 {½-½ (32) Bai,J (2566)-Narayanan,S (2565) Bhubaneswar 2018}) 11... cxd4 {[%emt 0:10:34]} 12. Ndf3 {[%emt 0:02:01]} Nbd7 {[%emt 0:01:30]} 13. Nxd7 {[%emt 0:11:59]} Qxd7 {[%emt 0:00:38]} 14. cxd5 {[%emt 0:02:26]} Bxd5 {[%emt 0:02:37]} 15. Rxd4 {[%emt 0:02:23]} Bc5 {[%emt 0:02:05]} 16. Rd1 {[%emt 0:02:58]} Rac8 {[%emt 0:04:49][%cal Oc5f2] aiming for ...Bxf2+!} 17. Qd3 {[%emt 0:01:17][%cal Oe2e4] [#]} Ng4 {[%emt 0:03:52]} (17... Qa4 $1 $17 {Strongly threatening ...Bc4.} 18. Bf4 Be4) 18. e3 $1 $15 {[%emt 0:03:55][%cal Ob2b4]} Qe7 {[%emt 0:01:03]} 19. h3 {[%emt 0:06:25] [#]} Rfd8 $1 {[%emt 0:00:57] And now ...Bxf3 would win.} 20. Qb5 {[%emt 0:03:25]} (20. Qe2 Nf6) 20... Nf6 {[%emt 0:04:25][%cal Bg4f6,Bf6e4,Be4d6,Bd6b5][%mdl 32]} 21. Bd2 {[%emt 0:06:41]} Ne4 {[%emt 0:04:54]} 22. Be1 {[%emt 0:02:01]} Nd6 {[%emt 0:05:17]} 23. Qe2 {[%emt 0:01:23] Hoping for b4.} a4 {[%emt 0:01:24]} 24. Bc3 {[%emt 0:01:12]} Bc4 {[%emt 0:01:22]} 25. Qe1 {[%emt 0:00:27]} ({Don't play} 25. Qc2 Bb3 26. Qe2 Bxd1 27. Rxd1 Ne4 $17) 25... Nb5 {[%emt 0:00:40]} 26. Rxd8+ {[%emt 0:03:00]} Rxd8 {[%emt 0:00:28]} 27. Ne5 {[%emt 0:00:13]} Bd5 {[%emt 0:00:08]} 28. Nc6 $1 {[%emt 0:01:18]} Bxc6 {[%emt 0:00:14]} 29. Bxc6 {[%emt 0:00:04][%cal Bg2c6,Bc6a4,Ba4d1,Bd1e2][%mdl 32]} Nxc3 {[%emt 0:00:07]} 30. Qxc3 {[%emt 0:00:05]} Qg5 {[%emt 0:07:27]} 31. Bxa4 {[%emt 0:00:16]} h5 {[%emt 0:00:53]} 32. Rd1 {[%emt 0:03:23]} Rxd1+ {[%emt 0:01:09]} 33. Bxd1 $14 {[%emt 0:00:01][%mdl 4096] Endgame KQB-KQB} h4 {[%emt 0:00:11]} 34. g4 {[%emt 0:00:18]} Qd5 {[%emt 0:00:13]} 35. Be2 {[%emt 0:01:10]} Bd6 {[%emt 0:01:27]} 36. Qd4 {[%emt 0:02:41]} Qxd4 {[%emt 0:01:26]} 37. exd4 {[%emt 0:00:03]} Bf4 {[%emt 0:00:05]} 38. a4 {[%emt 0:02:02]} Bc1 {[%emt 0:00:05]} 39. b3 {[%emt 0:01:17]} Bb2 {[%emt 0:00:11]} 40. f4 {[%emt 0:01:26] Weighted Error Value: White=0.10 (very precise) /Black=0.10 (very precise)} (40. d5 $5) 1/2-1/2

[Event "Germany Countries-chT Youth 2022"]
[Site "Wiesbaden"]
[Date "2022.10.03"]
[Round "6"]
[White "Rudolph, Eva"]
[Black "Malinowsky, Levi"]
[Result "1-0"]
[ECO "B90"]
[WhiteElo "1911"]
[BlackElo "1879"]
[Annotator "TA"]
[PlyCount "47"]
[EventDate "2022.09.28"]
[EventType "team-tourn"]
[EventRounds "7"]
[EventCountry "GER"]
[SourceTitle "playchess.com"]
[Source "ChessBase"]
[SourceQuality "1"]
[TimeControl "40/5400+30:1800+30"]

{[%evp 10,47,30,21,32,30,45,21,37,24,45,8,35,10,51,-13,66,69,87,75,129,38,156,73,137,55,159,120,349,95,501,497,494,470,457,429,2545,2448,29993,29994]} 1. e4 {[%emt 0:00:01]} c5 {[%emt 0:00:06]} 2. Nf3 {[%emt 0:00:12]} d6 {[%emt 0:00:10]} 3. d4 {[%emt 0:00:06]} cxd4 {[%emt 0:00:08]} 4. Nxd4 {[%emt 0:00:06]} Nf6 {[%emt 0:00:15]} 5. Nc3 {[%emt 0:00:06]} a6 {[%emt 0:00:04]} 6. a3 {[%emt 0:00:38]} e6 {[%emt 0:08:19] B90: Sicilian Najdorf: Unusual White 6th moves, 6 Be3 Ng4 and 6 Be3 e5.} 7. f4 {[%emt 0:01:55]} Qc7 {[%emt 0:01:33]} 8. Bd3 {[%emt 0:01:07]} Be7 {[%emt 0:01:16] The position is equal.} 9. O-O {[%emt 0:05:51]} O-O {[%emt 0:02:24]} 10. Qe2 {[%emt 0:03:47]} Nbd7 {[%emt 0:02:10]} 11. Kh1 {[%emt 0:04:14]} (11. g4 $5 {[%cal Rg4g5]}) 11... b5 {[%emt 0:01:42]} 12. Bd2 {[%emt 0:01:25]} ({Better is} 12. e5 $14 dxe5 13. fxe5 Nxe5 14. Bf4) 12... Re8 {[%emt 0:05:53]} ({Black should try} 12... Bb7 $11) 13. Rae1 $14 {[%emt 0:01:51]} Bb7 {[%emt 0:04:56]} 14. e5 {[%emt 0:04:35]} Nd5 {[%emt 0:03:08] [#]} (14... dxe5 $2 15. fxe5 Qxe5 16. Qxe5 $18) 15. Qg4 $146 {[%emt 0:29:18][%cal Od4e6]} ({Predecessor:} 15. f5 Nxe5 16. fxe6 Bf6 17. Bxh7+ Kf8 18. Nxd5 Bxd5 19. Be4 Bc4 20. Qh5 Bxf1 21. Bxa8 {1-0 (29) Lubbe,M (2332)-Wenzel,B (2084) Lueneburg 2018}) 15... Nxc3 {[%emt 0:12:03]} (15... Bf8 $1 $14) 16. Bxc3 {[%emt 0:00:09]} ({And not} 16. exd6 Qxd6 17. Bxc3 Bf6 $11) (16. f5 $142 Nxe5 17. Rxe5 dxe5 18. fxe6) 16... Bf8 $16 {[%emt 0:08:38]} 17. Nf3 $40 {[%emt 0:16:18][%mdl 128] White has some attack. White is much more active.} (17. Qh3 $1 $16 {[%csl Gd3][%cal Rh3h7]} g6 18. exd6 Qxd6 19. f5 exf5 20. Nxf5) 17... g6 {[%emt 0:05:53]} (17... Bxf3 $14 18. Rxf3 (18. Qxf3 g6 $14) 18... g6) 18. Ng5 $1 {[%emt 0:03:07]} Bg7 $2 {[%emt 0:04:27] [#]} (18... Nc5 $16) 19. Re3 $2 {[%emt 0:08:32]} (19. Nxf7 $1 $18 {[%mdl 512] and the rest is easy.} dxe5 20. fxe5) 19... Nc5 $2 {[%emt 0:18:18][%mdl 8192]} (19... Nf8 $16 {is tougher.}) 20. Rh3 $18 {[%emt 0:01:46][%cal Be3h3,Bh3h5,Bh5h7,Bh7g7][%mdl 32]} h5 {[%emt 0:03:15] [#]} 21. Rxh5 {[%emt 0:05:14][%mdl 512]} Nxd3 {[%emt 0:06:55]} (21... gxh5 $2 22. Qxh5 Nxd3 23. exd6 Bxg2+ 24. Kxg2 Qb7+ 25. Kg3 $18) (21... d5 22. Rh7) 22. Rh7 {[%emt 0:01:24] Black must now prevent exd6.} Nxb2 {[%emt 0:03:02]} (22... d5 $142 23. cxd3 d4) 23. Qh3 {[%emt 0:02:35] Rxg7+ would kill now.} ({Not} 23. Bxb2 Qxc2 24. Qh3 Bxg2+ 25. Qxg2 Qxg2+ 26. Kxg2 Rec8 $16) 23... Na4 {[%emt 0:01:55] [#]} 24. Rxg7+ $1 {[%emt 0:01:06][%mdl 576] Clearance.  Weighted Error Value: White=0.30/Black=0.80} 1-0

[Event "Germany Countries-chT Youth 2022"]
[Site "Wiesbaden"]
[Date "2022.10.03"]
[Round "6"]
[White "Neuhoff, Laertes"]
[Black "Voigt, Anastasia"]
[Result "1-0"]
[ECO "C54"]
[WhiteElo "1909"]
[BlackElo "1804"]
[Annotator "TA"]
[PlyCount "105"]
[EventDate "2022.09.28"]
[EventType "team-tourn"]
[EventRounds "7"]
[EventCountry "GER"]
[SourceTitle "playchess.com"]
[Source "ChessBase"]
[SourceQuality "1"]
[TimeControl "40/5400+30:1800+30"]

{[%evp 17,104,0,0,6,15,0,5,0,9,0,0,0,0,0,0,0,12,9,11,12,16,11,11,-9,0,-43,44,54,51,9,46,19,61,77,191,36,118,87,85,91,104,102,137,148,256,259,558,567,797,805,1360,1393,1405,1202,1281,1189,5510,5502,2144,879,806,808,775,768,930,918,886,881,797,687,666,605,681,675,658,600,557,498,29991,29992,29992,654,29992,591,641,625,29998,29999,29999]} 1. e4 {[%emt 0:00:01]} e5 {[%emt 0:00:05]} 2. Nf3 {[%emt 0:00:04]} Nc6 {[%emt 0:00:06]} 3. Bc4 {[%emt 0:00:04]} Bc5 {[%emt 0:00:05]} 4. c3 {[%emt 0:00:07]} Nf6 {[%emt 0:00:04]} 5. d4 {[%emt 0:00:07]} exd4 {[%emt 0:00:05]} 6. e5 {[%emt 0:00:14]} d5 {[%emt 0:00:10]} 7. Bb5 {[%emt 0:00:07]} Ne4 {[%emt 0:00:14]} 8. cxd4 {[%emt 0:00:09]} Bb6 {[%emt 0:00:05]} 9. Nc3 {[%emt 0:00:26]} O-O {[%emt 0:02:06]} 10. Be3 {[%emt 0:00:26] C54: Giuoco Piano: 4 c3 Nf6, main lines with 5 d4 and 5 d3.} Bg4 {[%emt 0:01:24]} 11. h3 {[%emt 0:00:26]} Bh5 {[%emt 0:00:19]} 12. Qc2 {[%emt 0:00:24] The position is equal.} Bg6 {[%emt 0:00:35] ...Nxc3 is the strong threat. 12...Nxc3 gains popularity.} 13. Qb3 {[%emt 0:00:53]} Ne7 {[%emt 0:01:47]} 14. O-O {[%emt 0:00:26]} c6 {[%emt 0:01:11]} 15. Bd3 {[%emt 0:01:31]} Nd2 {[%emt 0:03:18]} 16. Nxd2 {[%emt 0:00:53]} Bxd3 17. Rfe1 {[%emt 0:05:49][%cal Oc3d5]} Bg6 {[%emt 0:00:19]} 18. Na4 {[%emt 0:01:04]} Nf5 {[%emt 0:01:51]} 19. Nxb6 {[%emt 0:12:11]} axb6 {[%emt 0:00:07] [#]} 20. Rac1 $146 {[%emt 0:07:38]} ({Predecessor:} 20. Nf3 b5 21. Bd2 Re8 22. g4 Nh4 23. Nh2 Ra4 24. Qe3 Rc4 25. b3 Rc2 26. Rec1 {½-½ (39) Quesada Perez,Y (2568)-Shirov,A (2704) Chennai 2022}) 20... f6 {[%emt 0:09:54]} 21. f4 {[%emt 0:14:06]} Kh8 {[%emt 0:06:47]} (21... fxe5 $15 22. fxe5 b5) 22. Bf2 $14 {[%emt 0:04:51]} fxe5 {[%emt 0:04:28]} 23. fxe5 {[%emt 0:06:15]} (23. dxe5 $5 {[%cal Rg2g4]} c5 24. g4 $16) 23... Qe7 {[%emt 0:11:38]} (23... Bh5 {is more complex.} 24. a3 Qg5 25. Qd3 Kg8) 24. a3 {[%emt 0:04:35]} (24. Qxb6 {keeps more tension.} Nh4 25. Qc5 Qg5 26. Bxh4 Qxd2 27. Qc3) 24... Ra6 {[%emt 0:04:44]} 25. Nf3 {[%emt 0:01:38]} Bf7 {[%emt 0:03:28]} (25... Qe6 $16) 26. Qd3 $2 {[%emt 0:11:16]} ({Only move:} 26. g4 $18 Nh6 27. Bh4) 26... Be8 {[%emt 0:02:31]} (26... Bg6 $14) 27. Rf1 {[%emt 0:06:22] White is more active.} Bg6 {[%emt 0:03:42][%cal Of5g3]} 28. Qb3 {[%emt 0:04:31]} Nh6 {[%emt 0:02:42]} 29. Be1 {[%emt 0:03:52]} Rc8 {[%emt 0:03:30]} 30. Bb4 {[%emt 0:03:57]} Qd7 {[%emt 0:01:22]} (30... c5 $16 {might work better.}) 31. Ng5 $18 {[%emt 0:03:44] Hoping for e6.} Bf5 {[%emt 0:02:35] Against e6} (31... Raa8 32. e6 Qc7) 32. e6 {[%emt 0:01:11]} Bxe6 {[%emt 0:03:09]} 33. Rce1 {[%emt 0:02:14]} Bg8 {[%emt 0:03:25]} 34. Re7 {[%emt 0:00:47][%mdl 64] Skewer} Qd8 {[%emt 0:02:48]} 35. Qe3 {[%emt 0:02:58][%cal Oe7g7] White wants to mate with Rxg7!} Rc7 {[%emt 0:04:39]} 36. Re8 {[%emt 0:00:32]} Qd7 {[%emt 0:00:39]} 37. Rff8 {[%emt 0:02:11]} c5 {[%emt 0:04:14] [#]} 38. Nf7+ $1 {[%emt 0:00:52][%mdl 512]} Qxf7 {[%emt 0:00:56]} 39. Rxf7 {[%emt 0:00:14]} Rxf7 {[%emt 0:00:14]} 40. Bd2 {[%emt 0:00:49] aiming for Qe5.} Rf6 {[%emt 0:03:23]} 41. Qe7 {[%emt 0:03:54] Threatening mate with Bxh6.} b5 {[%emt 0:05:02]} 42. Bxh6 {[%emt 0:00:24]} gxh6 {[%emt 0:00:09]} 43. Qd8 {[%emt 0:04:17][%csl Gd8][%cal Re8g8]} Rg6 {[%emt 0:00:07]} 44. Qxd5 {[%emt 0:00:10]} cxd4 {[%emt 0:00:20]} 45. Qxd4+ {[%emt 0:00:02]} Rgf6 {[%emt 0:00:34]} 46. Qd8 {[%emt 0:01:35][%csl Gd8][%cal Re8g8]} Rg6 {[%emt 0:00:08]} 47. Rf8 {[%emt 0:00:42] Qd4+ would kill now.} Rac6 {[%emt 0:00:54]} (47... Rae6 $18 48. Qd7 Re1+ 49. Kf2 Ree6) 48. Qd4+ {[%emt 0:01:57]} Rg7 {[%emt 0:00:06]} 49. Rb8 {[%emt 0:00:32]} (49. Qe5 $142 Re6 50. Qxe6 h5 51. Rb8 h6 52. Qxh6+ Rh7 53. Qf6+ Rg7 54. Rxb7 Bf7 55. Rxf7 Kh7 56. Qxg7#) 49... Rcg6 {[%emt 0:02:21]} 50. g4 {[%emt 0:05:46]} (50. Qe5 $142 Rxg2+ 51. Kf1 Rg1+ 52. Kf2 R1g2+ 53. Kf3 R2g3+ 54. Ke4 R3g4+ 55. hxg4 b4 {[#]} 56. Rxg8+ $1 {[%mdl 512]} Kxg8 57. Qe8#) 50... h5 {[%emt 0:02:03]} 51. Qe5 {[%emt 0:04:22][%cal Ob8g8] Intending Rxg8+! and mate.} hxg4 {[%emt 0:00:54] [#]} 52. Rxg8+ $1 {[%emt 0:00:21][%mdl 576] Back Rank} Kxg8 {[%emt 0:00:10]} 53. Qe8# {Weighted Error Value: White=0.51/Black=0.86} 1-0